bitfinex-derivatives/quotes_SOLF0:USTF0_20250625
["timestamp","ask_amount","ask_price","bid_price","bid_amount"]
[1750872875371,4.43712283,143.72,143.65,8.54493744]
[1750872875565,4.43712283,143.72,143.66,8.54493744]
[1750872875763,6.9551,143.71,143.68,6.9563]
[1750872875972,4.43712283,143.72,143.66,12.98206027]
[1750872876174,4.43712283,143.72,143.66,10.86333744]
[1750872876368,11.39192283,143.72,143.68,6.9558]
[1750872876573,4.43712283,143.72,143.68,6.9558]
[1750872877065,6.9549,143.71,143.68,6.9558]
[1750872877268,4.43712283,143.72,143.69,6.9558]
[1750872877566,11.39172283,143.72,143.69,6.9558]
[1750872877769,37.12,143.73,143.71,6.9548]
[1750872877966,2.4152,143.76,143.68,12.98206027]
[1750872877967,39.5352,143.76,143.68,12.98206027]
[1750872878172,4.43712283,143.75,143.68,12.98206027]
[1750872878375,4.43712283,143.75,143.69,8.54493744]
[1750872878575,4.43712283,143.73,143.68,45.66493744]
[1750872878876,4.43712283,143.73,143.68,37.12]
[1750872879379,6.9551,143.71,143.68,37.12]
[1750872879973,6.9551,143.71,143.67,8.54493744]
[1750872880171,6.9551,143.71,143.69,6.9558]
[1750872880367,6.9551,143.71,143.67,8.54493744]
[1750872880774,6.9551,143.71,143.68,6.956]
[1750872881978,37.12,143.72,143.67,15.50143744]
[1750872882174,37.12,143.72,143.67,8.54493744]
[1750872882676,37.12,143.72,143.67,6.9565]
[1750872883069,4.43712283,143.71,143.67,6.9565]
[1750872883268,4.43712283,143.71,143.66,8.54493744]
[1750872883469,4.43712283,143.7,143.66,8.54493744]
[1750872883873,6.9557,143.7,143.66,8.54493744]
[1750872884375,41.55712283,143.72,143.66,8.54493744]
[1750872885268,41.55712283,143.72,143.67,6.9567]
[1750872886164,6.9557,143.7,143.67,6.9567]
[1750872886577,6.9557,143.7,143.68,6.9561]
[1750872887270,44.0747,143.72,143.68,8.54493744]
[1750872887466,37.12,143.72,143.68,8.54493744]
[1750872887871,2.4152,143.76,143.68,8.54493744]
[1750872887872,37.12,143.75,143.68,8.54493744]
[1750872888074,37.12,143.75,143.68,13.43413744]
[1750872888377,37.12,143.75,143.71,6.9545]
[1750872888578,37.12,143.75,143.68,13.43413744]
[1750872888973,44.0732,143.75,143.69,12.98206027]
[1750872889378,37.12,143.75,143.69,12.98206027]
[1750872889978,44.073,143.75,143.72,6.954]
[1750872890170,37.12,143.75,143.69,12.98206027]
[1750872890371,37.12,143.75,143.71,8.54493744]
[1750872890570,37.12,143.75,143.73,6.9538]
[1750872891484,44.0729,143.75,143.73,6.9538]
[1750872891773,44.0729,143.75,143.72,6.9541]
[1750872892674,37.12,143.75,143.73,6.9538]
[1750872893572,44.0729,143.75,143.72,6.9541]
[1750872893778,44.0729,143.75,143.71,8.54493744]
[1750872893971,37.12,143.75,143.74,6.9534]
[1750872894174,37.12,143.75,143.69,12.81740616]
[1750872894175,39.533,143.8,143.73,4.43712283]
[1750872894574,6.9518,143.78,143.75,6.9527]
[1750872894880,6.9518,143.78,143.73,4.43712283]
[1750872895279,6.9512,143.79,143.76,6.9524]
[1750872895473,37.12,143.8,143.73,12.98206027]
[1750872895669,37.12,143.8,143.74,45.66493744]
[1750872895868,37.12,143.8,143.75,4.43712283]
[1750872896083,46.19782283,143.83,143.75,12.98206027]
[1750872896582,6.9498,143.82,143.79,6.9506]
[1750872896883,6.9488,143.84,143.81,6.9497]
[1750872897087,41.55712283,143.85,143.77,8.54493744]
[1750872897269,41.55712283,143.85,143.75,12.81740616]
[1750872897270,37.12,143.85,143.76,8.54493744]
[1750872897585,4.43712283,143.82,143.75,8.54493744]
[1750872898083,11.38762283,143.8,143.76,6.9521]
[1750872898279,4.43712283,143.8,143.76,6.9521]
[1750872899173,6.9512,143.79,143.76,6.9521]
[1750872900387,4.43712283,143.8,143.73,11.01473744]
[1750872900679,4.43712283,143.8,143.72,41.35712283]
[1750872900680,37.12,143.81,143.72,8.54493744]
[1750872900881,4.43712283,143.76,143.72,6.9541]
[1750872901287,4.43712283,143.76,143.69,2.3754]
[1750872902182,4.43712283,143.76,143.72,6.954]
[1750872902580,4.43712283,143.76,143.69,10.92219097]
[1750872902787,4.43712283,143.76,143.74,6.9531]
[1750872903288,43.8722,143.77,143.74,6.9531]
[1750872905290,2.4598,143.79,143.72,4.43712283]
[1750872905694,2.4598,143.79,143.75,6.9526]
[1750872905895,4.43712283,143.78,143.72,4.43712283]
[1750872906289,4.43712283,143.78,143.74,6.9531]
[1750872906496,6.9525,143.76,143.74,6.9531]
[1750872907092,6.9522,143.77,143.74,6.9531]
[1750872907289,4.43712283,143.78,143.74,6.9531]
[1750872907481,6.9526,143.76,143.74,6.9531]
[1750872908087,6.9522,143.77,143.74,6.9531]
[1750872908697,6.9522,143.77,143.75,6.9529]
[1750872908900,6.9517,143.78,143.72,4.43712283]
[1750872909101,2.4598,143.79,143.72,41.35712283]
[1750872909303,2.4598,143.79,143.77,6.9516]
[1750872909595,41.35712283,143.8,143.72,49.8957867]
[1750872909790,6.9512,143.79,143.76,6.952]
[1750872909990,6.9512,143.79,143.72,49.8957867]
[1750872910395,6.9512,143.79,143.76,6.952]
[1750872911405,6.9515,143.78,143.75,6.9526]
[1750872911608,4.43712283,143.78,143.75,6.9526]
[1750872911908,6.9522,143.77,143.74,6.9531]
[1750872912311,6.9522,143.77,143.72,41.35712283]
[1750872912698,4.43712283,143.78,143.72,41.35712283]
[1750872913408,11.38892283,143.78,143.75,6.9526]
[1750872914809,6.9518,143.78,143.76,6.9524]
[1750872915603,6.9518,143.78,143.75,6.9527]
[1750872915805,11.38892283,143.78,143.75,6.9527]
[1750872916010,4.43712283,143.78,143.71,4.43712283]
[1750872916207,4.43712283,143.76,143.69,43.71252283]
[1750872916413,41.33712283,143.76,143.69,39.2754]
[1750872916807,41.33712283,143.76,143.71,6.9545]
[1750872917012,6.9536,143.74,143.71,6.9545]
[1750872917814,6.9536,143.74,143.72,6.9542]
[1750872918014,41.33712283,143.76,143.69,2.3754]
[1750872918616,6.9541,143.73,143.69,2.3754]
[1750872919015,4.43712283,143.74,143.68,8.53866387]
[1750872919314,6.9544,143.72,143.67,45.45866387]
[1750872919511,6.9544,143.72,143.69,6.9556]
[1750872920313,6.9549,143.71,143.69,6.9556]
[1750872921617,6.9545,143.72,143.7,6.9553]
[1750872922721,4.43712283,143.73,143.67,41.35712283]
[1750872922722,11.39122283,143.73,143.67,41.35712283]
[1750872922918,4.43712283,143.73,143.67,49.8957867]
[1750872923118,4.43712283,143.73,143.67,41.35712283]
[1750872923512,6.9546,143.72,143.69,6.9554]
[1750872923907,6.9546,143.72,143.67,41.35712283]
[1750872924112,6.9546,143.72,143.7,6.9552]
[1750872924617,6.9548,143.71,143.67,36.92]
[1750872925208,6.9545,143.72,143.69,6.9556]
[1750872925419,6.9545,143.72,143.67,36.92]
[1750872925619,6.9545,143.72,143.69,6.9554]
[1750872926121,6.9545,143.72,143.67,36.92]
[1750872926414,6.9545,143.72,143.69,6.9555]
[1750872927618,6.955,143.71,143.69,6.9555]
[1750872928618,4.43712283,143.73,143.67,36.92]
[1750872928814,46.03422283,143.76,143.65,13.31530535]
[1750872928815,4.43712283,143.71,143.65,13.31530535]
[1750872929213,6.9557,143.7,143.67,6.9564]
[1750872929623,6.9557,143.7,143.68,6.9562]
[1750872929824,6.955,143.71,143.66,12.99622818]
[1750872930122,36.92,143.72,143.66,4.43712283]
[1750872930624,6.9554,143.7,143.68,6.956]
[1750872930924,36.92,143.72,143.68,6.956]
[1750872931321,6.9555,143.7,143.68,6.956]
[1750872932415,6.9551,143.71,143.68,6.956]
[1750872932727,36.92,143.72,143.68,6.956]
[1750872933327,6.9549,143.71,143.68,6.956]
[1750872933827,6.9549,143.71,143.69,6.9558]
[1750872934124,43.8745,143.72,143.65,17.75242818]
[1750872934330,43.61202283,143.77,143.69,4.43712283]
[1750872934817,6.9531,143.75,143.72,6.9542]
[1750872935022,6.9531,143.75,143.69,4.43712283]
[1750872935216,6.9531,143.75,143.73,6.9539]
[1750872936220,4.43712283,143.75,143.71,6.9546]
[1750872936418,4.43712283,143.75,143.68,45.39910535]
[1750872936826,6.9537,143.74,143.71,6.9545]
[1750872937827,4.43712283,143.75,143.68,45.39910535]
[1750872938028,4.43712283,143.73,143.66,8.55910535]
[1750872938429,6.9553,143.7,143.68,6.956]
[1750872938828,4.43712283,143.73,143.65,54.59242818]
[1750872939030,6.955,143.71,143.69,6.9556]
[1750872940738,36.84,143.74,143.67,4.43712283]
[1750872940932,36.84,143.74,143.69,4.43712283]
[1750872941121,6.9532,143.75,143.69,41.27712283]
[1750872941730,6.9532,143.75,143.72,6.9541]
[1750872941935,6.9534,143.74,143.72,6.9541]
[1750872942138,43.61202283,143.77,143.72,6.9541]
[1750872942436,43.61202283,143.77,143.73,6.9538]
[1750872942834,43.61202283,143.77,143.7,4.43712283]
[1750872943034,6.9529,143.75,143.72,6.9542]
[1750872943235,43.61202283,143.77,143.72,6.9542]
[1750872943841,6.9532,143.75,143.72,6.9542]
[1750872944843,6.9535,143.74,143.72,6.9542]
[1750872946553,43.61202283,143.77,143.74,6.9534]
[1750872946842,36.84,143.77,143.74,6.9534]
[1750872947037,4.43712283,143.79,143.74,6.9534]
[1750872947238,4.43712283,143.79,143.75,6.9525]
[1750872947758,250.99759815,143.8,143.74,4.43712283]
[1750872947945,250.99759815,143.8,143.73,36.84]
[1750872948240,6.9522,143.77,143.73,36.84]
[1750872948445,6.9522,143.77,143.74,6.9531]
[1750872949042,4.43712283,143.79,143.73,43.7936]
[1750872949344,4.43712283,143.77,143.71,10.84850535]
[1750872949652,6.9536,143.74,143.71,15.51350535]
[1750872949837,4.43712283,143.77,143.71,8.55910535]
[1750872950142,4.43712283,143.77,143.7,47.75770535]
[1750872950536,6.9532,143.75,143.72,6.954]
[1750872950738,4.43712283,143.77,143.72,6.954]
[1750872952348,6.9534,143.74,143.72,6.954]
[1750872952750,4.43712283,143.77,143.73,6.9539]
[1750872953353,6.9528,143.76,143.73,6.9539]
[1750872953746,6.9522,143.77,143.72,8.55910535]
[1750872954046,6.9522,143.77,143.73,4.43712283]
[1750872954643,6.9522,143.77,143.72,8.55910535]
[1750872954839,6.9522,143.77,143.73,4.43712283]
[1750872956339,6.9522,143.77,143.74,6.9533]
[1750872957054,6.9522,143.77,143.75,6.9528]
[1750872958356,6.9516,143.78,143.75,6.9528]
[1750872960461,6.952,143.77,143.75,6.9528]
[1750872961057,6.9517,143.78,143.76,6.9524]
[1750872964864,6.9519,143.77,143.75,6.9526]
[1750872965662,6.9517,143.78,143.76,6.9524]
[1750872966062,250.99759815,143.8,143.73,4.43712283]
[1750872966362,250.99759815,143.8,143.73,43.52492283]
[1750872966662,6.9515,143.78,143.75,6.9524]
[1750872966863,4.43712283,143.79,143.75,6.9524]
[1750872967058,4.43712283,143.77,143.71,8.57836884]
[1750872967263,6.9532,143.75,143.72,6.9541]
[1750872968168,214.15759815,143.8,143.73,4.43712283]
[1750872968357,36.76,143.79,143.73,13.01549167]
[1750872968664,36.76,143.79,143.73,4.43712283]
[1750872969256,6.9519,143.77,143.74,6.9529]
[1750872970067,6.9519,143.77,143.75,6.9528]
[1750872970268,6.9525,143.76,143.72,8.57836884]
[1750872970465,36.76,143.79,143.71,13.01549167]
[1750872970466,4.43712283,143.78,143.71,13.01549167]
[1750872970769,6.9522,143.77,143.72,8.57836884]
[1750872971267,6.9522,143.77,143.74,6.9532]
[1750872971773,6.9517,143.78,143.73,13.01549167]
[1750872972162,6.9517,143.78,143.73,4.43712283]
[1750872972462,6.9519,143.77,143.73,4.43712283]
[1750872972670,6.9519,143.77,143.72,8.57836884]
[1750872972967,6.9525,143.76,143.73,6.9534]
[1750872973166,6.9525,143.76,143.72,13.01549167]
[1750872973557,6.9525,143.76,143.73,6.9538]
[1750872974062,6.9522,143.77,143.72,4.43712283]
[1750872974264,6.9522,143.77,143.74,6.9531]
[1750872974468,41.19712283,143.79,143.74,6.9531]
[1750872974659,6.9523,143.77,143.74,6.9531]
[1750872975062,6.9523,143.77,143.75,6.9528]
[1750872976068,36.76,143.79,143.76,6.9524]
[1750872976370,36.76,143.79,143.73,8.57836884]
[1750872976668,6.9523,143.77,143.74,6.9532]
[1750872977567,41.19712283,143.79,143.73,6.9535]
[1750872978069,6.9527,143.76,143.74,6.9533]
[1750872978458,6.9527,143.76,143.72,8.57836884]
[1750872978459,4.43712283,143.77,143.72,8.57836884]
[1750872978662,6.9534,143.74,143.72,6.9541]
[1750872978971,36.76,143.75,143.71,8.57836884]
[1750872979168,4.43712283,143.73,143.68,8.57836884]
[1750872979468,4.43712283,143.7,143.65,8.57836884]
[1750872979662,36.76,143.69,143.65,8.57836884]
[1750872979857,6.9571,143.67,143.63,145.9905108]
[1750872980068,4.43712283,143.68,143.63,145.9905108]
[1750872980259,36.76,143.69,143.63,150.42763363]
[1750872980656,36.76,143.69,143.61,41.19712283]
[1750872980855,6.9573,143.66,143.63,6.9583]
[1750872981164,4.43712283,143.68,143.63,6.9583]
[1750872981367,6.9578,143.65,143.63,15.56556852]
[1750872981972,6.9574,143.66,143.63,8.60726852]
[1750872982264,4.43712283,143.68,143.62,8.60726852]
[1750872982657,4.43712283,143.68,143.63,6.9587]
[1750872982967,4.43712283,143.68,143.62,8.60726852]
[1750872983167,4.43712283,143.68,143.61,45.36726852]
[1750872983366,6.9582,143.64,143.6,8.60726852]
[1750872983872,43.7379,143.65,143.6,8.60726852]
[1750872984058,36.78,143.65,143.59,8.60726852]
[1750872984466,6.9585,143.64,143.61,6.9595]
[1750872984665,36.78,143.65,143.59,8.60726852]
[1750872985265,36.78,143.65,143.6,6.9599]
[1750872985564,4.43712283,143.64,143.58,8.60726852]
[1750872986064,6.9595,143.62,143.59,6.9603]
[1750872986466,4.43712283,143.64,143.57,156.90573299]
[1750872986665,6.9599,143.61,143.57,8.60726852]
[1750872987072,6.9593,143.62,143.56,13.04439135]
[1750872987370,4.43712283,143.64,143.56,13.04439135]
[1750872987674,6.959,143.63,143.6,6.9601]
[1750872987873,4.43712283,143.64,143.56,8.60726852]
[1750872988070,4.43712283,143.62,143.55,13.04439135]
[1750872988274,36.78,143.61,143.55,4.43712283]
[1750872988765,43.7398,143.61,143.57,6.9613]
[1750872989171,43.7398,143.61,143.55,4.43712283]
[1750872989573,36.78,143.61,143.55,4.43712283]
[1750872990080,36.78,143.61,143.57,4.43712283]
[1750872990278,4.43712283,143.63,143.56,4.43712283]
[1750872990479,4.43712283,143.63,143.58,6.9609]
[1750872990679,6.9599,143.61,143.58,6.9609]
[1750872991268,6.9599,143.61,143.55,4.43712283]
[1750872991269,6.9602,143.6,143.57,6.9614]
[1750872991470,4.43712283,143.61,143.54,41.6753]
[1750872991867,6.9604,143.6,143.57,6.9614]
[1750872992174,4.43712283,143.61,143.54,41.6753]
[1750872992579,6.9602,143.6,143.57,6.9613]
[1750872993382,6.9602,143.6,143.54,46.11242283]
[1750872994177,4.43712283,143.61,143.54,9.33242283]
[1750872994178,6.96,143.61,143.54,9.33242283]
[1750872994569,4.43712283,143.62,143.57,6.9613]
[1750872994770,6.9604,143.6,143.57,6.9613]
[1750872994985,4.43712283,143.62,143.54,4.8953]
[1750872995284,6.9607,143.59,143.56,6.9618]
[1750872996677,6.9612,143.58,143.56,6.9618]
[1750872996884,41.15712283,143.6,143.56,6.9618]
[1750872997382,6.9609,143.59,143.56,6.9618]
[1750872997982,6.9611,143.58,143.56,6.9618]
[1750872998276,41.15712283,143.6,143.51,36.72]
[1750872998584,41.15712283,143.6,143.51,41.15712283]
[1750872998786,41.15712283,143.6,143.52,4.43712283]
[1750872999084,6.9617,143.57,143.54,6.9627]
[1750872999385,41.15712283,143.6,143.52,4.43712283]
[1750872999386,4.43712283,143.59,143.52,4.43712283]
[1750872999883,6.9615,143.58,143.55,6.9623]
[1750873001384,4.43712283,143.59,143.54,6.9629]
[1750873001679,4.43712283,143.59,143.51,41.15712283]
[1750873001877,4.43712283,143.57,143.52,6.9636]
[1750873002284,36.72,143.56,143.52,6.9636]
[1750873002484,36.72,143.56,143.51,6.9643]
[1750873002670,2.2465,143.58,143.51,4.43712283]
[1750873002871,6.9624,143.56,143.48,36.72]
[1750873003076,6.9624,143.56,143.51,4.43712283]
[1750873003876,6.9626,143.55,143.52,6.9636]
[1750873004089,4.43712283,143.55,143.48,36.72]
[1750873004285,4.43712283,143.53,143.46,4.7176]
[1750873004485,41.15712283,143.53,143.46,2.4489]
[1750873004685,36.72,143.53,143.49,4.43712283]
[1750873004886,41.3757,143.56,143.49,4.43712283]
[1750873005088,48.3381,143.56,143.53,6.9635]
[1750873005381,41.3757,143.56,143.5,4.43712283]
[1750873005587,6.9628,143.55,143.52,6.9638]
[1750873005887,45.81282283,143.56,143.48,4.43712283]
[1750873006284,6.9638,143.53,143.5,6.9648]
[1750873006688,6.9638,143.53,143.51,6.9645]
[1750873007288,6.9638,143.53,143.5,6.9648]
[1750873007588,6.9633,143.54,143.48,4.43712283]
[1750873007782,41.3757,143.56,143.53,6.9631]
[1750873007984,36.72,143.56,143.53,6.9631]
[1750873008181,36.72,143.56,143.5,4.43712283]
[1750873008787,43.6823,143.56,143.49,36.74]
[1750873008985,36.72,143.56,143.5,4.43712283]
[1750873009391,137.88,143.63,143.49,36.74]
[1750873009392,13.9147,143.66,143.54,4.43712283]
[1750873009585,4.43712283,143.63,143.56,4.43712283]
[1750873009889,36.74,143.62,143.57,6.9614]
[1750873010288,36.74,143.62,143.56,4.43712283]
[1750873010484,36.74,143.62,143.58,6.961]
[1750873010485,6.9599,143.61,143.58,6.961]
[1750873010685,36.74,143.62,143.58,6.961]
[1750873010890,6.96,143.61,143.58,6.961]
[1750873011390,36.74,143.62,143.58,6.961]
[1750873011587,6.9598,143.61,143.58,6.961]
[1750873012285,6.9603,143.6,143.58,6.961]
[1750873013091,6.9597,143.61,143.58,6.961]
[1750873013688,43.6994,143.62,143.59,6.9602]
[1750873014095,36.74,143.62,143.59,6.9602]
[1750873014394,6.9599,143.61,143.58,6.9609]
[1750873014794,36.74,143.62,143.58,6.9609]
[1750873015293,36.74,143.62,143.59,6.9605]
[1750873015494,6.9599,143.61,143.59,6.9605]
[1750873015692,36.72,143.64,143.58,4.43712283]
[1750873016096,43.6785,143.64,143.58,4.43712283]
[1750873016401,43.6785,143.64,143.61,6.9594]
[1750873017096,6.9592,143.62,143.6,6.96]
[1750873017297,36.72,143.64,143.58,4.43712283]
[1750873017298,41.15712283,143.64,143.58,4.43712283]
[1750873017888,6.9594,143.62,143.59,6.9604]
[1750873019491,6.9594,143.62,143.6,6.9601]
[1750873019794,6.9598,143.61,143.57,36.72]
[1750873020299,6.9594,143.62,143.59,6.9604]
[1750873020596,41.15712283,143.64,143.59,6.9604]
[1750873020793,41.15712283,143.64,143.58,6.961]
[1750873021292,6.9599,143.61,143.59,6.9605]
[1750873021600,36.72,143.64,143.56,4.43712283]
[1750873021897,601.48,143.67,143.59,4.43712283]
[1750873022097,4.43712283,143.66,143.59,4.43712283]
[1750873022403,6.9586,143.64,143.61,6.9596]
[1750873022601,6.9586,143.64,143.59,4.43712283]
[1750873023200,601.48,143.67,143.63,6.9586]
[1750873023401,41.15712283,143.68,143.63,6.9586]
[1750873023600,6.9576,143.66,143.63,6.9586]
[1750873024894,6.957,143.67,143.64,6.9579]
[1750873025397,6.9557,143.7,143.67,6.9565]
[1750873025604,36.68,143.71,143.62,41.2883]
[1750873025801,4.43712283,143.67,143.6,4.43712283]
[1750873026004,6.958,143.65,143.62,6.9589]
[1750873026204,41.11712283,143.67,143.6,4.43712283]
[1750873026717,41.11712283,143.67,143.62,6.9591]
[1750873027211,6.958,143.65,143.62,6.9588]
[1750873028014,6.958,143.65,143.63,6.9586]
[1750873028309,6.9575,143.66,143.63,6.9586]
[1750873028706,41.11712283,143.67,143.63,6.9586]
[1750873029105,6.9575,143.66,143.63,6.9586]
[1750873029610,41.11712283,143.67,143.62,6.9589]
[1750873030113,6.9579,143.65,143.62,6.9589]
[1750873030614,6.9579,143.65,143.6,4.43712283]
[1750873031309,6.9579,143.65,143.62,6.959]
[1750873032315,6.9583,143.64,143.62,6.959]
[1750873032913,41.11712283,143.67,143.62,6.959]
[1750873033307,6.9582,143.64,143.62,6.959]
[1750873033614,41.11712283,143.67,143.62,6.959]
[1750873033813,41.11712283,143.67,143.63,6.9586]
[1750873034315,6.958,143.65,143.63,6.9586]
[1750873035013,36.68,143.67,143.64,6.958]
[1750873035420,6.9574,143.66,143.64,6.958]
[1750873035617,36.68,143.67,143.62,4.43712283]
[1750873035917,36.66,143.71,143.64,4.43712283]
[1750873036610,36.66,143.71,143.66,6.9568]
[1750873037117,6.9561,143.69,143.66,6.9568]
[1750873037623,6.9564,143.68,143.66,6.9568]
[1750873037816,6.9564,143.68,143.63,4.6741]
[1750873037817,6.9564,143.68,143.65,6.9576]
[1750873038017,41.09712283,143.71,143.63,2.4131]
[1750873038216,6.957,143.67,143.63,2.4131]
[1750873038714,6.9566,143.68,143.63,2.4131]
[1750873039021,6.9566,143.68,143.65,6.9577]
[1750873039520,6.9568,143.67,143.65,6.9577]
[1750873039821,41.09712283,143.71,143.65,6.9577]
[1750873040425,41.09712283,143.71,143.64,4.43712283]
[1750873040622,6.9562,143.69,143.64,4.43712283]
[1750873041021,36.66,143.71,143.64,4.43712283]
[1750873041423,36.66,143.71,143.68,6.9561]
[1750873042312,36.66,143.71,143.67,6.9565]
[1750873042521,36.66,143.71,143.64,4.43712283]
[1750873042717,36.66,143.71,143.63,2.4131]
[1750873042925,36.66,143.71,143.68,6.956]
[1750873043422,36.66,143.71,143.69,6.9557]
[1750873044316,4.43712283,143.73,143.65,4.43712283]
[1750873044515,11.69882283,143.73,143.65,4.43712283]
[1750873044719,7.2617,143.73,143.65,4.43712283]
[1750873045019,11.69882283,143.73,143.65,4.43712283]
[1750873045721,11.69882283,143.73,143.64,13.9161]
[1750873045921,11.69882283,143.73,143.65,4.43712283]
[1750873046221,6.9546,143.72,143.65,4.43712283]
[1750873046526,11.69882283,143.73,143.65,4.43712283]
[1750873046826,6.9549,143.71,143.68,6.9559]
[1750873047222,6.9557,143.7,143.67,6.9565]
[1750873047416,4.43712283,143.71,143.65,4.43712283]
[1750873048028,6.9553,143.7,143.65,4.43712283]
[1750873048224,4.43712283,143.71,143.65,4.43712283]
[1750873048623,4.43712283,143.71,143.63,2.4131]
[1750873048624,4.43712283,143.71,143.63,6.85022283]
[1750873048926,4.43712283,143.69,143.63,4.43712283]
[1750873049226,4.43712283,143.69,143.62,36.66]
[1750873049227,4.43712283,143.69,143.65,6.9577]
[1750873049423,4.43712283,143.69,143.62,36.66]
[1750873049623,36.66,143.7,143.63,4.43712283]
[1750873049931,6.9562,143.69,143.66,6.957]
[1750873050425,6.9562,143.69,143.67,6.9568]
[1750873050818,43.6156,143.7,143.67,6.9568]
[1750873051324,6.9559,143.69,143.67,6.9568]
[1750873051628,36.66,143.7,143.68,6.956]
[1750873051819,43.6156,143.7,143.65,4.43712283]
[1750873052628,6.9559,143.69,143.67,6.9565]
[1750873053325,43.6156,143.7,143.67,6.9565]
[1750873053522,36.66,143.7,143.67,6.9565]
[1750873053932,43.6155,143.7,143.67,6.9565]
[1750873054229,43.6155,143.7,143.68,6.9563]
[1750873054632,36.66,143.7,143.68,6.9563]
[1750873055430,36.66,143.7,143.69,6.9558]
[1750873056133,36.66,143.7,143.68,6.956]
[1750873056733,36.66,143.7,143.67,6.9566]
[1750873057230,43.6155,143.7,143.67,6.9566]
[1750873060437,6.9559,143.69,143.66,6.957]
[1750873060640,36.66,143.7,143.63,8.55763612]
[1750873060936,6.9566,143.68,143.65,6.9574]
[1750873061336,41.09712283,143.7,143.65,6.9574]
[1750873062035,6.9565,143.68,143.65,6.9574]
[1750873063331,41.09712283,143.7,143.62,52.07645895]
[1750873063332,6.956,143.69,143.63,8.55763612]
[1750873063538,41.09712283,143.7,143.63,8.55763612]
[1750873063931,6.9558,143.69,143.66,6.957]
[1750873066150,6.9558,143.69,143.67,6.9567]
[1750873066333,48.05262283,143.7,143.67,6.9567]
[1750873069440,6.9558,143.69,143.66,6.957]
[1750873070144,43.6155,143.7,143.67,6.9567]
[1750873070542,6.9558,143.69,143.66,6.957]
[1750873071341,6.9568,143.67,143.64,15.51563612]
[1750873071531,4.43712283,143.69,143.63,8.55763612]
[1750873072343,11.39332283,143.69,143.65,6.9574]
[1750873072539,11.39332283,143.69,143.63,8.55763612]
[1750873073046,11.39332283,143.69,143.65,6.9574]
[1750873073047,6.9563,143.68,143.65,6.9574]
[1750873073245,4.43712283,143.69,143.63,8.55763612]
[1750873073646,4.43712283,143.69,143.66,6.957]
[1750873073847,4.43712283,143.69,143.62,4.43712283]
[1750873073848,36.66,143.7,143.64,12.99475895]
[1750873074648,36.66,143.7,143.65,8.55763612]
[1750873076254,36.66,143.7,143.67,6.9563]
[1750873076549,36.66,143.7,143.65,8.55763612]
[1750873077248,36.66,143.7,143.69,6.9558]
[1750873077638,6.9545,143.72,143.69,6.9558]
[1750873077839,6.9548,143.71,143.69,6.9558]
[1750873078148,36.62,143.73,143.68,12.99475895]
[1750873078351,36.62,143.73,143.7,4.43712283]
[1750873078549,43.5727,143.76,143.7,12.99475895]
[1750873078752,43.5727,143.76,143.73,6.9536]
[1750873079951,6.953,143.75,143.73,6.9536]
[1750873080449,6.953,143.75,143.72,6.9541]
[1750873080658,4.43712283,143.74,143.7,8.55763612]
[1750873080949,4.43712283,143.72,143.67,15.51413612]
[1750873081149,41.05712283,143.72,143.67,15.51413612]
[1750873081352,6.9557,143.7,143.67,15.51413612]
[1750873081556,41.05712283,143.72,143.67,8.55763612]
[1750873082143,41.05712283,143.72,143.66,146.17763612]
[1750873082763,2.4687,143.73,143.68,12.99475895]
[1750873082953,8.62478576,143.74,143.68,12.99475895]
[1750873083151,4.43712283,143.74,143.68,12.99475895]
[1750873083452,6.9541,143.73,143.7,6.9551]
[1750873083641,36.56,143.75,143.68,12.99475895]
[1750873083844,6.9536,143.74,143.71,6.9546]
[1750873084042,6.9536,143.74,143.69,8.55763612]
[1750873084255,36.56,143.75,143.69,8.55763612]
[1750873084448,36.56,143.75,143.7,4.43712283]
[1750873084645,6.9531,143.75,143.72,6.9543]